[Event "Titled Tuesday Blitz January 31 Early 2023"]
[White "Cunha, Lucas Aguiar"]
[Black "Ronka, Erik"]
[WhiteFideId "2125404"]
[BlackFideId "505080"]
[WhiteElo "2309"]
[BlackElo "2276"]
[Result "0-1"]
[Round "05"]
[TimeControl "180+2"]
[Date "2023.01.31"]
[WhiteClock "0:00:11"]
[BlackClock "0:00:04"]

1. e4 {[%clk 0:03:00]}  c5 {[%clk 0:03:00]} 2. Nf3 {[%clk 0:02:59]}  b6 {[%clk 0:03:00]} 3. d4 {[%clk 0:02:59]}  cxd4 {[%clk 0:03:01]} 4. Nxd4 {[%clk 0:02:59]}  Bb7 {[%clk 0:03:01]} 5. Nc3 {[%clk 0:02:59]}  a6 {[%clk 0:03:02]} 6. Bg5 {[%clk 0:02:33]}  Qc7 {[%clk 0:02:57]} 7. Qd2 {[%clk 0:02:33]}  e6 {[%clk 0:02:56]} 8. f3 {[%clk 0:02:24]}  Nf6 {[%clk 0:02:31]} 9. O-O-O {[%clk 0:02:08]}  Bb4 {[%clk 0:02:30]} 10. a3 {[%clk 0:02:08]}  Bxc3 {[%clk 0:02:30]} 11. Qxc3 {[%clk 0:02:09]}  Qxc3 {[%clk 0:02:30]} 12. bxc3 {[%clk 0:02:10]}  d5 {[%clk 0:02:13]} 13. exd5 {[%clk 0:01:42]}  Bxd5 {[%clk 0:02:03]} 14. Nf5 {[%clk 0:01:33]}  Nbd7 {[%clk 0:01:22]} 15. c4 {[%clk 0:01:21]}  Bc6 {[%clk 0:00:51]} 16. Nd4 {[%clk 0:01:12]}  Bb7 {[%clk 0:00:48]} 17. Be2 {[%clk 0:01:08]}  O-O {[%clk 0:00:47]} 18. Rd2 {[%clk 0:01:05]}  Rac8 {[%clk 0:00:44]} 19. Rhd1 {[%clk 0:01:05]}  Ne5 {[%clk 0:00:44]} 20. Nb3 {[%clk 0:00:56]}  Nxc4 {[%clk 0:00:39]} 21. Bxc4 {[%clk 0:00:42]}  Rxc4 {[%clk 0:00:40]} 22. Rd6 {[%clk 0:00:36]}  Bd5 {[%clk 0:00:28]} 23. Rxb6 {[%clk 0:00:32]}  Rfc8 {[%clk 0:00:29]} 24. Nd4 {[%clk 0:00:26]}  e5 {[%clk 0:00:12]} 25. Nf5 {[%clk 0:00:26]}  Rxc2+ {[%clk 0:00:12]} 26. Kb1 {[%clk 0:00:26]}  Ba2+ {[%clk 0:00:06]} 27. Ka1 {[%clk 0:00:27]}  Kf8 {[%clk 0:00:05]} 28. Rxf6 {[%clk 0:00:22]}  gxf6 {[%clk 0:00:06]} 29. Bh6+ {[%clk 0:00:23]}  Ke8 {[%clk 0:00:05]} 30. Nd6+ {[%clk 0:00:23]}  Kd7 {[%clk 0:00:05]} 31. Nxc8+ {[%clk 0:00:23]}  Kxc8 {[%clk 0:00:06]} 32. g3 {[%clk 0:00:20]}  Be6 {[%clk 0:00:06]} 33. Bg7 {[%clk 0:00:19]}  Rxh2 {[%clk 0:00:05]} 34. Bxf6 {[%clk 0:00:18]}  Re2 {[%clk 0:00:05]} 35. Rc1+ {[%clk 0:00:17]}  Kd7 {[%clk 0:00:05]} 36. Rd1+ {[%clk 0:00:16]}  Kc6 {[%clk 0:00:05]} 37. Rh1 {[%clk 0:00:16]}  Kb5 {[%clk 0:00:02]} 38. Rh4 {[%clk 0:00:15]}  Rf2 {[%clk 0:00:02]} 39. Bxe5 {[%clk 0:00:14]}  a5 {[%clk 0:00:02]} 40. Rxh7 {[%clk 0:00:12]}  Rxf3 {[%clk 0:00:02]} 41. Kb2 {[%clk 0:00:11]}  Rf2+ {[%clk 0:00:02]} 42. Kc3 {[%clk 0:00:12]}  Rf3+ {[%clk 0:00:02]} 43. Kb2 {[%clk 0:00:12]}  Rb3+ {[%clk 0:00:02]} 44. Kc2 {[%clk 0:00:12]}  Rxa3 {[%clk 0:00:03]} 45. Bc3 {[%clk 0:00:11]}  Ra2+ {[%clk 0:00:03]} 46. Kc1 {[%clk 0:00:11]}  Rg2 {[%clk 0:00:03]} 47. Be1 {[%clk 0:00:10]}  a4 {[%clk 0:00:03]} 48. Rh5+ {[%clk 0:00:10]}  Kc4 {[%clk 0:00:03]} 49. Ra5 {[%clk 0:00:11]}  Kb3 {[%clk 0:00:03]} 50. Rb5+ {[%clk 0:00:12]}  Ka3 {[%clk 0:00:03]} 51. Bb4+ {[%clk 0:00:10]}  Ka2 {[%clk 0:00:04]} 52. Bd6 {[%clk 0:00:11]}  Bb3 {[%clk 0:00:04]} 53. Bf4 {[%clk 0:00:10]}  Rc2+ {[%clk 0:00:04]} 54. Kd1 {[%clk 0:00:10]}  Rc5+ {[%clk 0:00:04]} 55. Ke1 {[%clk 0:00:11]}  Rxb5 {[%clk 0:00:04]} 0-1


[Site "https://www.chess.com"]

[Event "Titled Tuesday Blitz January 31 Early 2023"]
[White "Dehtiarov, Roman"]
[Black "Ramirez Allo, Eduardo"]
[WhiteFideId "14186640"]
[BlackFideId "2224178"]
[WhiteElo "2289"]
[BlackElo "2274"]
[Result "1-0"]
[Round "05"]
[TimeControl "180+2"]
[Date "2023.01.31"]
[WhiteClock "0:00:06"]
[BlackClock "0:00:07"]

1. e4 {[%clk 0:03:00]}  c5 {[%clk 0:03:00]} 2. Nc3 {[%clk 0:03:00]}  a6 {[%clk 0:03:00]} 3. f4 {[%clk 0:03:01]}  b5 {[%clk 0:03:00]} 4. Nf3 {[%clk 0:03:01]}  Bb7 {[%clk 0:03:00]} 5. d3 {[%clk 0:03:01]}  e6 {[%clk 0:02:59]} 6. g3 {[%clk 0:03:01]}  Nf6 {[%clk 0:02:59]} 7. Bg2 {[%clk 0:03:00]}  d6 {[%clk 0:02:58]} 8. O-O {[%clk 0:03:00]}  Be7 {[%clk 0:02:59]} 9. h3 {[%clk 0:03:00]}  O-O {[%clk 0:02:59]} 10. g4 {[%clk 0:02:59]}  Nc6 {[%clk 0:03:00]} 11. Be3 {[%clk 0:02:59]}  Nd7 {[%clk 0:02:59]} 12. Ne2 {[%clk 0:02:58]}  Rc8 {[%clk 0:02:41]} 13. Ng3 {[%clk 0:02:57]}  Qb6 {[%clk 0:02:39]} 14. Qd2 {[%clk 0:02:52]}  Nd4 {[%clk 0:02:39]} 15. c3 {[%clk 0:02:50]}  Nxf3+ {[%clk 0:02:38]} 16. Bxf3 {[%clk 0:01:48]}  Qc7 {[%clk 0:02:38]} 17. Qg2 {[%clk 0:01:48]}  b4 {[%clk 0:02:13]} 18. g5 {[%clk 0:01:47]}  c4 {[%clk 0:02:09]} 19. d4 {[%clk 0:01:45]}  bxc3 {[%clk 0:02:08]} 20. bxc3 {[%clk 0:01:46]}  Rfe8 {[%clk 0:02:07]} 21. h4 {[%clk 0:01:45]}  Bf8 {[%clk 0:02:06]} 22. h5 {[%clk 0:01:45]}  g6 {[%clk 0:02:00]} 23. hxg6 {[%clk 0:01:40]}  hxg6 {[%clk 0:01:59]} 24. Rab1 {[%clk 0:01:38]}  Rb8 {[%clk 0:01:59]} 25. e5 {[%clk 0:01:33]}  Bxf3 {[%clk 0:01:58]} 26. Qxf3 {[%clk 0:01:34]}  d5 {[%clk 0:01:50]} 27. f5 {[%clk 0:01:25]}  Rxb1 {[%clk 0:01:45]} 28. Rxb1 {[%clk 0:01:21]}  Rb8 {[%clk 0:01:45]} 29. Rxb8 {[%clk 0:01:14]}  Qxb8 {[%clk 0:01:45]} 30. fxe6 {[%clk 0:01:14]}  fxe6 {[%clk 0:01:45]} 31. Ne2 {[%clk 0:01:10]}  Qb1+ {[%clk 0:01:44]} 32. Qf1 {[%clk 0:00:55]}  Qxf1+ {[%clk 0:01:30]} 33. Kxf1 {[%clk 0:00:56]}  Be7 {[%clk 0:01:29]} 34. Kg2 {[%clk 0:00:49]}  Kf7 {[%clk 0:01:27]} 35. Kf3 {[%clk 0:00:49]}  Nf8 {[%clk 0:01:24]} 36. Kg4 {[%clk 0:00:48]}  Ke8 {[%clk 0:01:23]} 37. Nf4 {[%clk 0:00:44]}  Kd7 {[%clk 0:01:23]} 38. Kf3 {[%clk 0:00:45]}  Bxg5 {[%clk 0:00:49]} 39. Nxd5 {[%clk 0:00:43]}  exd5 {[%clk 0:00:47]} 40. Bxg5 {[%clk 0:00:42]}  Ne6 {[%clk 0:00:43]} 41. Kg4 {[%clk 0:00:42]}  Kc6 {[%clk 0:00:43]} 42. Be7 {[%clk 0:00:26]}  Kb5 {[%clk 0:00:35]} 43. Kf3 {[%clk 0:00:26]}  Ka4 {[%clk 0:00:33]} 44. Ke3 {[%clk 0:00:23]}  Ng7 {[%clk 0:00:26]} 45. Bf8 {[%clk 0:00:18]}  Ne6 {[%clk 0:00:20]} 46. Bd6 {[%clk 0:00:18]}  Kb5 {[%clk 0:00:18]} 47. Kf3 {[%clk 0:00:18]}  Kc6 {[%clk 0:00:17]} 48. Be7 {[%clk 0:00:14]}  Kd7 {[%clk 0:00:17]} 49. Bb4 {[%clk 0:00:13]}  Ng7 {[%clk 0:00:16]} 50. Kg4 {[%clk 0:00:13]}  Ke6 {[%clk 0:00:17]} 51. Kg5 {[%clk 0:00:13]}  Kf7 {[%clk 0:00:17]} 52. Bd6 {[%clk 0:00:10]}  Ne6+ {[%clk 0:00:17]} 53. Kg4 {[%clk 0:00:10]}  Kg7 {[%clk 0:00:17]} 54. Be7 {[%clk 0:00:10]}  Kh6 {[%clk 0:00:17]} 55. Bf6 {[%clk 0:00:10]}  Nf8 {[%clk 0:00:14]} 56. Bg5+ {[%clk 0:00:09]}  Kg7 {[%clk 0:00:14]} 57. Bf6+ {[%clk 0:00:09]}  Kf7 {[%clk 0:00:14]} 58. Kg5 {[%clk 0:00:08]}  Ne6+ {[%clk 0:00:14]} 59. Kg4 {[%clk 0:00:08]}  Kg8 {[%clk 0:00:14]} 60. Bh4 {[%clk 0:00:09]}  Kh7 {[%clk 0:00:15]} 61. Be1 {[%clk 0:00:09]}  Kh6 {[%clk 0:00:14]} 62. Bd2+ {[%clk 0:00:09]}  Kg7 {[%clk 0:00:14]} 63. Be3 {[%clk 0:00:09]}  Kf7 {[%clk 0:00:14]} 64. Kf3 {[%clk 0:00:10]}  Ke7 {[%clk 0:00:14]} 65. Ke2 {[%clk 0:00:10]}  Kd7 {[%clk 0:00:15]} 66. Kf3 {[%clk 0:00:10]}  Kc6 {[%clk 0:00:15]} 67. Kg4 {[%clk 0:00:07]}  Kb5 {[%clk 0:00:16]} 68. Bc1 {[%clk 0:00:07]}  Ka4 {[%clk 0:00:17]} 69. Kh4 {[%clk 0:00:07]}  Kb5 {[%clk 0:00:13]} 70. Kh3 {[%clk 0:00:07]}  Kc6 {[%clk 0:00:13]} 71. Kg3 {[%clk 0:00:07]}  Kd7 {[%clk 0:00:14]} 72. Kg4 {[%clk 0:00:08]}  Ke7 {[%clk 0:00:14]} 73. Bd2 {[%clk 0:00:08]}  Kf7 {[%clk 0:00:15]} 74. Kf3 {[%clk 0:00:09]}  g5 {[%clk 0:00:15]} 75. Kg4 {[%clk 0:00:08]}  Kg6 {[%clk 0:00:15]} 76. Bc1 {[%clk 0:00:09]}  a5 {[%clk 0:00:15]} 77. a4 {[%clk 0:00:08]}  Ng7 {[%clk 0:00:10]} 78. Bxg5 {[%clk 0:00:08]}  Nf5 {[%clk 0:00:11]} 79. e6 {[%clk 0:00:07]}  Nd6 {[%clk 0:00:11]} 80. Kf4 {[%clk 0:00:05]}  Ne4 {[%clk 0:00:11]} 81. Bd8 {[%clk 0:00:06]}  Nxc3 {[%clk 0:00:10]} 82. Bxa5 {[%clk 0:00:06]}  Ne2+ {[%clk 0:00:10]} 83. Ke5 {[%clk 0:00:06]}  c3 {[%clk 0:00:09]} 84. Kxd5 {[%clk 0:00:06]}  c2 {[%clk 0:00:09]} 85. Bd2 {[%clk 0:00:06]}  Kf6 {[%clk 0:00:09]} 86. a5 {[%clk 0:00:06]}  Ke7 {[%clk 0:00:09]} 87. a6 {[%clk 0:00:06]}  Nc3+ {[%clk 0:00:08]} 88. Kc4 {[%clk 0:00:05]}  Na4 {[%clk 0:00:07]} 89. d5 {[%clk 0:00:05]}  Nb6+ {[%clk 0:00:07]} 90. Kc5 {[%clk 0:00:06]}  Na8 {[%clk 0:00:07]} 91. Kc6 {[%clk 0:00:06]}  Kd8 {[%clk 0:00:06]} 92. d6 {[%clk 0:00:06]}  Ke8 {[%clk 0:00:07]} 93. d7+ {[%clk 0:00:06]}  Kd8 {[%clk 0:00:07]} 94. Bg5# {[%clk 0:00:06]} 1-0


[Site "https://www.chess.com"]

[Event "Titled Tuesday Blitz January 31 Early 2023"]
[White "Alex_Sahakyan2006"]
[Black "Zacurdajev, Dmitry"]
[BlackFideId "4196309"]
[WhiteElo "2661"]
[BlackElo "2273"]
[Result "1-0"]
[Round "05"]
[TimeControl "180+2"]
[Date "2023.01.31"]
[WhiteClock "0:00:50"]
[BlackClock "0:00:06"]

1. g3 {[%clk 0:03:00]}  d5 {[%clk 0:02:57]} 2. Bg2 {[%clk 0:03:00]}  Nf6 {[%clk 0:02:57]} 3. d3 {[%clk 0:02:59]}  e5 {[%clk 0:02:56]} 4. Nf3 {[%clk 0:02:58]}  Bd6 {[%clk 0:02:55]} 5. O-O {[%clk 0:02:57]}  c5 {[%clk 0:02:56]} 6. c4 {[%clk 0:02:56]}  d4 {[%clk 0:02:47]} 7. b4 {[%clk 0:02:54]}  cxb4 {[%clk 0:02:45]} 8. a3 {[%clk 0:02:55]}  bxa3 {[%clk 0:02:44]} 9. Bxa3 {[%clk 0:02:54]}  O-O {[%clk 0:02:45]} 10. Bxd6 {[%clk 0:02:53]}  Qxd6 {[%clk 0:02:46]} 11. Na3 {[%clk 0:02:54]}  a6 {[%clk 0:02:44]} 12. Qb3 {[%clk 0:02:51]}  Nc6 {[%clk 0:02:40]} 13. Rfb1 {[%clk 0:02:47]}  Re8 {[%clk 0:02:33]} 14. Nd2 {[%clk 0:02:47]}  Rb8 {[%clk 0:02:27]} 15. Ne4 {[%clk 0:02:37]}  Nxe4 {[%clk 0:02:26]} 16. Bxe4 {[%clk 0:02:38]}  Bg4 {[%clk 0:02:21]} 17. Ra2 {[%clk 0:02:33]}  Kh8 {[%clk 0:02:14]} 18. Qb6 {[%clk 0:02:32]}  f5 {[%clk 0:02:04]} 19. Bd5 {[%clk 0:02:28]}  e4 {[%clk 0:01:58]} 20. Nc2 {[%clk 0:02:21]}  Bxe2 {[%clk 0:01:34]} 21. Nxd4 {[%clk 0:02:20]}  Bxd3 {[%clk 0:01:35]} 22. Rd1 {[%clk 0:02:18]}  Qe5 {[%clk 0:01:27]} 23. Nxc6 {[%clk 0:02:10]}  bxc6 {[%clk 0:01:28]} 24. Qxc6 {[%clk 0:02:11]}  Bb1 {[%clk 0:01:15]} 25. Re2 {[%clk 0:02:05]}  f4 {[%clk 0:01:12]} 26. Rde1 {[%clk 0:02:01]}  Bd3 {[%clk 0:01:01]} 27. Rxe4 {[%clk 0:01:34]}  Bxe4 {[%clk 0:00:51]} 28. Rxe4 {[%clk 0:01:35]}  Rb1+ {[%clk 0:00:49]} 29. Kg2 {[%clk 0:01:36]}  f3+ {[%clk 0:00:50]} 30. Kxf3 {[%clk 0:01:30]}  Rf8+ {[%clk 0:00:50]} 31. Kg2 {[%clk 0:01:18]}  Qa1 {[%clk 0:00:30]} 32. Rf4 {[%clk 0:01:01]}  Rg1+ {[%clk 0:00:30]} 33. Kh3 {[%clk 0:01:00]}  Qa3 {[%clk 0:00:24]} 34. c5 {[%clk 0:00:52]}  Rb8 {[%clk 0:00:13]} 35. Qd6 {[%clk 0:00:53]}  Rg8 {[%clk 0:00:06]} 36. Rf8 {[%clk 0:00:50]} 1-0


[Site "https://www.chess.com"]

[Event "Titled Tuesday Blitz January 31 Early 2023"]
[White "Khamdamova, Afruza"]
[Black "Samant Aditya S"]
[WhiteFideId "14210444"]
[BlackFideId "35080580"]
[WhiteElo "2162"]
[BlackElo "2501"]
[Result "0-1"]
[Round "05"]
[TimeControl "180+2"]
[Date "2023.01.31"]
[WhiteClock "0:00:20"]
[BlackClock "0:00:09"]

1. e4 {[%clk 0:03:00]}  d6 {[%clk 0:02:59]} 2. d4 {[%clk 0:03:01]}  Nf6 {[%clk 0:02:59]} 3. Nc3 {[%clk 0:03:01]}  e5 {[%clk 0:03:00]} 4. Nf3 {[%clk 0:03:00]}  Nbd7 {[%clk 0:02:59]} 5. Bc4 {[%clk 0:03:00]}  Be7 {[%clk 0:03:00]} 6. O-O {[%clk 0:03:00]}  O-O {[%clk 0:03:00]} 7. Re1 {[%clk 0:02:56]}  a6 {[%clk 0:03:01]} 8. a4 {[%clk 0:02:55]}  b6 {[%clk 0:03:01]} 9. Nd5 {[%clk 0:02:44]}  Bb7 {[%clk 0:02:55]} 10. Nxe7+ {[%clk 0:02:39]}  Qxe7 {[%clk 0:02:56]} 11. Bg5 {[%clk 0:02:31]}  h6 {[%clk 0:02:53]} 12. Bh4 {[%clk 0:02:31]}  g5 {[%clk 0:02:36]} 13. dxe5 {[%clk 0:02:11]}  dxe5 {[%clk 0:02:21]} 14. Bg3 {[%clk 0:02:06]}  Nxe4 {[%clk 0:02:17]} 15. Qd3 {[%clk 0:02:01]}  Ndc5 {[%clk 0:02:10]} 16. Qe3 {[%clk 0:01:57]}  Nxg3 {[%clk 0:01:55]} 17. hxg3 {[%clk 0:01:57]}  e4 {[%clk 0:01:38]} 18. Nd4 {[%clk 0:01:53]}  Qf6 {[%clk 0:01:38]} 19. b4 {[%clk 0:01:45]}  Nd7 {[%clk 0:01:19]} 20. Rad1 {[%clk 0:01:36]}  Ne5 {[%clk 0:01:18]} 21. Bb3 {[%clk 0:01:19]}  c5 {[%clk 0:01:04]} 22. bxc5 {[%clk 0:01:19]}  bxc5 {[%clk 0:01:05]} 23. Ne2 {[%clk 0:01:19]}  Rac8 {[%clk 0:00:43]} 24. Nc3 {[%clk 0:01:14]}  c4 {[%clk 0:00:21]} 25. Ba2 {[%clk 0:01:14]}  Ng4 {[%clk 0:00:19]} 26. Qe2 {[%clk 0:01:11]}  Qxc3 {[%clk 0:00:16]} 27. Qxg4 {[%clk 0:01:07]}  Qxc2 {[%clk 0:00:13]} 28. Bb1 {[%clk 0:01:03]}  Qxa4 {[%clk 0:00:13]} 29. Bxe4 {[%clk 0:00:57]}  Bxe4 {[%clk 0:00:13]} 30. Rxe4 {[%clk 0:00:39]}  Qc6 {[%clk 0:00:13]} 31. Re2 {[%clk 0:00:34]}  Rfd8 {[%clk 0:00:05]} 32. Rc1 {[%clk 0:00:34]}  Qd7 {[%clk 0:00:04]} 33. Qh5 {[%clk 0:00:25]}  Kg7 {[%clk 0:00:03]} 34. Rec2 {[%clk 0:00:25]}  Qe6 {[%clk 0:00:03]} 35. Qf3 {[%clk 0:00:23]}  Qf6 {[%clk 0:00:03]} 36. Rxc4 {[%clk 0:00:21]}  Rxc4 {[%clk 0:00:03]} 37. Rxc4 {[%clk 0:00:21]}  Qxf3 {[%clk 0:00:04]} 38. gxf3 {[%clk 0:00:21]}  Ra8 {[%clk 0:00:05]} 39. Ra4 {[%clk 0:00:21]}  a5 {[%clk 0:00:05]} 40. Kf1 {[%clk 0:00:21]}  Kf6 {[%clk 0:00:06]} 41. Ke2 {[%clk 0:00:22]}  Ke5 {[%clk 0:00:07]} 42. Ke3 {[%clk 0:00:22]}  Kd5 {[%clk 0:00:08]} 43. Kd3 {[%clk 0:00:22]}  Kc5 {[%clk 0:00:08]} 44. Kc3 {[%clk 0:00:23]}  Kb5 {[%clk 0:00:09]} 45. Kb3 {[%clk 0:00:23]}  Rd8 {[%clk 0:00:09]} 46. Ra2 {[%clk 0:00:22]}  Rd3+ {[%clk 0:00:09]} 47. Kc2 {[%clk 0:00:21]}  Rxf3 {[%clk 0:00:10]} 48. Kb1 {[%clk 0:00:20]}  a4 {[%clk 0:00:09]} 49. Rb2+ {[%clk 0:00:20]}  Rb3 {[%clk 0:00:09]} 0-1


[Site "https://www.chess.com"]

[Event "Titled Tuesday Blitz January 31 Early 2023"]
[White "Vagman, Roy"]
[Black "Taspinar, Yanki"]
[WhiteFideId "2828995"]
[BlackFideId "34561188"]
[WhiteElo "2273"]
[BlackElo "2262"]
[Result "0-1"]
[Round "05"]
[TimeControl "180+2"]
[Date "2023.01.31"]
[WhiteClock "0:00:13"]
[BlackClock "0:00:18"]

1. Nf3 {[%clk 0:02:55]}  Nf6 {[%clk 0:02:58]} 2. g3 {[%clk 0:02:53]}  c5 {[%clk 0:02:59]} 3. Bg2 {[%clk 0:02:51]}  g6 {[%clk 0:02:59]} 4. O-O {[%clk 0:02:52]}  Bg7 {[%clk 0:02:59]} 5. e3 {[%clk 0:02:51]}  O-O {[%clk 0:02:59]} 6. d4 {[%clk 0:02:51]}  d5 {[%clk 0:02:58]} 7. dxc5 {[%clk 0:02:50]}  Na6 {[%clk 0:02:52]} 8. Nc3 {[%clk 0:02:46]}  Nxc5 {[%clk 0:02:50]} 9. Qe2 {[%clk 0:02:46]}  b6 {[%clk 0:02:43]} 10. Rd1 {[%clk 0:02:47]}  Ba6 {[%clk 0:02:42]} 11. Qe1 {[%clk 0:02:45]}  e6 {[%clk 0:02:41]} 12. Nd4 {[%clk 0:02:41]}  Qe7 {[%clk 0:02:37]} 13. b3 {[%clk 0:02:22]}  Rac8 {[%clk 0:02:31]} 14. Bb2 {[%clk 0:02:22]}  Rfd8 {[%clk 0:02:29]} 15. a4 {[%clk 0:02:12]}  Nfe4 {[%clk 0:02:21]} 16. Nxe4 {[%clk 0:02:11]}  Nxe4 {[%clk 0:02:21]} 17. Bxe4 {[%clk 0:01:53]}  dxe4 {[%clk 0:02:22]} 18. c4 {[%clk 0:01:50]}  h5 {[%clk 0:02:16]} 19. Qc3 {[%clk 0:01:50]}  Qg5 {[%clk 0:01:59]} 20. h4 {[%clk 0:01:34]}  Qg4 {[%clk 0:01:59]} 21. Qc2 {[%clk 0:01:25]}  Bb7 {[%clk 0:01:49]} 22. Rd2 {[%clk 0:01:10]}  Rd7 {[%clk 0:01:38]} 23. Rad1 {[%clk 0:01:09]}  Rcd8 {[%clk 0:01:38]} 24. Ne2 {[%clk 0:00:52]}  Rd3 {[%clk 0:01:06]} 25. Bxg7 {[%clk 0:00:41]}  Kxg7 {[%clk 0:01:06]} 26. Nf4 {[%clk 0:00:36]}  Qf3 {[%clk 0:00:53]} 27. Qb2+ {[%clk 0:00:28]}  Kg8 {[%clk 0:00:52]} 28. Qc1 {[%clk 0:00:11]}  e5 {[%clk 0:00:42]} 29. Ng2 {[%clk 0:00:10]}  Qxd1+ {[%clk 0:00:32]} 30. Qxd1 {[%clk 0:00:11]}  Rxd2 {[%clk 0:00:32]} 31. Qf1 {[%clk 0:00:11]}  Rd1 {[%clk 0:00:31]} 32. Ne1 {[%clk 0:00:11]}  R8d2 {[%clk 0:00:30]} 33. Kg2 {[%clk 0:00:09]}  a5 {[%clk 0:00:30]} 34. c5 {[%clk 0:00:09]}  bxc5 {[%clk 0:00:23]} 35. Qb5 {[%clk 0:00:09]}  Bc8 {[%clk 0:00:21]} 36. Qe8+ {[%clk 0:00:09]}  Kg7 {[%clk 0:00:19]} 37. Qxe5+ {[%clk 0:00:08]}  Kh7 {[%clk 0:00:18]} 38. Qxc5 {[%clk 0:00:07]}  Bg4 {[%clk 0:00:14]} 39. Qe7 {[%clk 0:00:07]}  Be6 {[%clk 0:00:14]} 40. Qg5 {[%clk 0:00:03]}  Rxe1 {[%clk 0:00:13]} 41. Qxa5 {[%clk 0:00:03]}  Ree2 {[%clk 0:00:13]} 42. Kg1 {[%clk 0:00:03]}  Rxf2 {[%clk 0:00:13]} 43. Qc5 {[%clk 0:00:02]}  Rg2+ {[%clk 0:00:13]} 44. Kf1 {[%clk 0:00:02]}  Rh2 {[%clk 0:00:12]} 45. Ke1 {[%clk 0:00:02]}  Rc2 {[%clk 0:00:12]} 46. Qxc2 {[%clk 0:00:01]}  Rxc2 {[%clk 0:00:12]} 47. b4 {[%clk 0:00:02]}  Rb2 {[%clk 0:00:11]} 48. b5 {[%clk 0:00:03]}  Rb4 {[%clk 0:00:12]} 49. b6 {[%clk 0:00:03]}  Rxb6 {[%clk 0:00:12]} 50. a5 {[%clk 0:00:04]}  Ra6 {[%clk 0:00:13]} 51. g4 {[%clk 0:00:04]}  Rxa5 {[%clk 0:00:14]} 52. g5 {[%clk 0:00:04]}  Ra2 {[%clk 0:00:13]} 53. Kf1 {[%clk 0:00:05]}  Bh3+ {[%clk 0:00:12]} 54. Kg1 {[%clk 0:00:06]}  Kg8 {[%clk 0:00:11]} 55. Kh1 {[%clk 0:00:06]}  Kf8 {[%clk 0:00:12]} 56. Kg1 {[%clk 0:00:07]}  Ke7 {[%clk 0:00:13]} 57. Kh1 {[%clk 0:00:08]}  Ke6 {[%clk 0:00:14]} 58. Kg1 {[%clk 0:00:09]}  Ke5 {[%clk 0:00:15]} 59. Kh1 {[%clk 0:00:10]}  Kf5 {[%clk 0:00:16]} 60. Kg1 {[%clk 0:00:11]}  Kg4 {[%clk 0:00:17]} 61. Kh1 {[%clk 0:00:12]}  Kg3 {[%clk 0:00:18]} 62. Kg1 {[%clk 0:00:13]}  Ra1# {[%clk 0:00:18]} 0-1


[Site "https://www.chess.com"]

[Event "Titled Tuesday Blitz January 31 Early 2023"]
[White "Piesik, Piotr"]
[Black "Bambino Filho, Antonio Carlos"]
[WhiteFideId "1136194"]
[BlackFideId "2113163"]
[WhiteElo "2426"]
[BlackElo "2144"]
[Result "1-0"]
[Round "05"]
[TimeControl "180+2"]
[Date "2023.01.31"]
[WhiteClock "0:00:30"]
[BlackClock "0:00:39"]

1. Nf3 {[%clk 0:03:00]}  c5 {[%clk 0:02:59]} 2. e4 {[%clk 0:03:00]}  e6 {[%clk 0:02:58]} 3. c3 {[%clk 0:03:00]}  d5 {[%clk 0:02:58]} 4. exd5 {[%clk 0:03:00]}  exd5 {[%clk 0:02:59]} 5. d4 {[%clk 0:03:00]}  Bd6 {[%clk 0:02:59]} 6. Be2 {[%clk 0:03:00]}  Nc6 {[%clk 0:03:00]} 7. O-O {[%clk 0:02:59]}  Nge7 {[%clk 0:03:01]} 8. dxc5 {[%clk 0:02:57]}  Bxc5 {[%clk 0:03:01]} 9. Nbd2 {[%clk 0:02:57]}  O-O {[%clk 0:03:01]} 10. Nb3 {[%clk 0:02:58]}  Bd6 {[%clk 0:03:02]} 11. Nbd4 {[%clk 0:02:55]}  Bg4 {[%clk 0:03:02]} 12. Be3 {[%clk 0:02:54]}  Re8 {[%clk 0:03:02]} 13. Re1 {[%clk 0:02:50]}  a6 {[%clk 0:02:59]} 14. Qd2 {[%clk 0:02:42]}  Qc7 {[%clk 0:02:59]} 15. g3 {[%clk 0:02:36]}  Nf5 {[%clk 0:02:57]} 16. Nxf5 {[%clk 0:02:35]}  Bxf5 {[%clk 0:02:58]} 17. Qxd5 {[%clk 0:02:32]}  Be4 {[%clk 0:02:54]} 18. Qh5 {[%clk 0:02:30]}  g6 {[%clk 0:02:54]} 19. Qh6 {[%clk 0:02:28]}  Bf8 {[%clk 0:02:52]} 20. Qh4 {[%clk 0:02:26]}  f6 {[%clk 0:02:16]} 21. Bc4+ {[%clk 0:02:11]}  Kh8 {[%clk 0:02:16]} 22. Nd4 {[%clk 0:01:16]}  g5 {[%clk 0:02:06]} 23. Qg4 {[%clk 0:01:03]}  Bg6 {[%clk 0:01:27]} 24. Nxc6 {[%clk 0:00:55]}  Qxc6 {[%clk 0:01:28]} 25. Bd4 {[%clk 0:00:55]}  Bg7 {[%clk 0:01:21]} 26. Bf1 {[%clk 0:00:53]}  Be4 {[%clk 0:01:18]} 27. Re3 {[%clk 0:00:48]}  h6 {[%clk 0:01:07]} 28. Rae1 {[%clk 0:00:47]}  f5 {[%clk 0:01:08]} 29. Bxg7+ {[%clk 0:00:43]}  Kxg7 {[%clk 0:01:09]} 30. Qh5 {[%clk 0:00:39]}  g4 {[%clk 0:00:52]} 31. Bg2 {[%clk 0:00:30]}  Rad8 {[%clk 0:00:39]} 32. Bxe4 {[%clk 0:00:30]} 1-0


[Site "https://www.chess.com"]